[Event "Titled Tuesday Blitz January 10 Early 2023"]
[White "Ansh M Shah"]
[Black "Lacasa Diaz, Jose Antonio"]
[WhiteFideId "25033379"]
[BlackFideId "2203375"]
[WhiteElo "2171"]
[BlackElo "2359"]
[Result "0-1"]
[Round "02"]
[TimeControl "180+2"]
[Date "2023.01.10"]
[WhiteClock "0:00:03"]
[BlackClock "0:01:09"]

1. d4 {[%clk 0:03:00]}  d5 {[%clk 0:02:54]} 2. c4 {[%clk 0:03:00]}  e6 {[%clk 0:02:54]} 3. g3 {[%clk 0:03:00]}  c5 {[%clk 0:02:55]} 4. Bg2 {[%clk 0:03:00]}  Nc6 {[%clk 0:02:50]} 5. Nf3 {[%clk 0:02:59]}  Nf6 {[%clk 0:02:48]} 6. O-O {[%clk 0:02:59]}  cxd4 {[%clk 0:02:48]} 7. Nxd4 {[%clk 0:02:58]}  Bc5 {[%clk 0:02:49]} 8. Nxc6 {[%clk 0:02:57]}  bxc6 {[%clk 0:02:48]} 9. Nd2 {[%clk 0:02:54]}  O-O {[%clk 0:02:47]} 10. b3 {[%clk 0:02:53]}  e5 {[%clk 0:02:19]} 11. Bb2 {[%clk 0:02:47]}  Re8 {[%clk 0:02:14]} 12. Rc1 {[%clk 0:02:44]}  Bd6 {[%clk 0:02:12]} 13. cxd5 {[%clk 0:02:36]}  cxd5 {[%clk 0:02:11]} 14. Nc4 {[%clk 0:02:29]}  Bc7 {[%clk 0:02:03]} 15. Ne3 {[%clk 0:02:22]}  Bb7 {[%clk 0:02:03]} 16. Qc2 {[%clk 0:01:34]}  Bb6 {[%clk 0:02:02]} 17. Rfd1 {[%clk 0:00:40]}  Bxe3 {[%clk 0:01:56]} 18. fxe3 {[%clk 0:00:41]}  Qb6 {[%clk 0:01:51]} 19. Qc5 {[%clk 0:00:40]}  Qa6 {[%clk 0:01:43]} 20. Rc2 {[%clk 0:00:18]}  h5 {[%clk 0:01:42]} 21. Rdc1 {[%clk 0:00:15]}  Ng4 {[%clk 0:01:30]} 22. h3 {[%clk 0:00:14]}  Rac8 {[%clk 0:01:27]} 23. hxg4 {[%clk 0:00:12]}  Rxc5 {[%clk 0:01:26]} 24. Rxc5 {[%clk 0:00:13]}  Qxe2 {[%clk 0:01:24]} 25. R1c2 {[%clk 0:00:12]}  Qxe3+ {[%clk 0:01:24]} 26. Kh2 {[%clk 0:00:12]}  hxg4 {[%clk 0:01:17]} 27. Bxd5 {[%clk 0:00:12]}  Bxd5 {[%clk 0:01:12]} 28. Rxd5 {[%clk 0:00:13]}  Re6 {[%clk 0:01:10]} 29. Rdd2 {[%clk 0:00:03]}  Rh6+ {[%clk 0:01:08]} 30. Kg2 {[%clk 0:00:03]}  Qf3+ {[%clk 0:01:09]} 31. Kg1 {[%clk 0:00:03]}  Rh1# {[%clk 0:01:09]} 0-1


[Site "https://www.chess.com"]

[Event "Titled Tuesday Blitz January 10 Early 2023"]
[White "Bobomurodova, Maftuna"]
[Black "Najdin, Danil"]
[WhiteFideId "14207400"]
[BlackFideId "4172426"]
[WhiteElo "1946"]
[BlackElo "2235"]
[Result "0-1"]
[Round "02"]
[TimeControl "180+2"]
[Date "2023.01.10"]
[WhiteClock "0:00:15"]
[BlackClock "0:00:59"]

1. e4 {[%clk 0:03:00]}  g6 {[%clk 0:02:58]} 2. d4 {[%clk 0:03:00]}  c6 {[%clk 0:02:54]} 3. Nc3 {[%clk 0:02:59]}  d5 {[%clk 0:02:54]} 4. Nf3 {[%clk 0:02:54]}  Bg7 {[%clk 0:02:53]} 5. Be2 {[%clk 0:02:52]}  Bg4 {[%clk 0:02:50]} 6. O-O {[%clk 0:02:49]}  e6 {[%clk 0:02:47]} 7. h3 {[%clk 0:02:49]}  Bxf3 {[%clk 0:02:47]} 8. Bxf3 {[%clk 0:02:49]}  Nf6 {[%clk 0:02:47]} 9. Be3 {[%clk 0:02:44]}  dxe4 {[%clk 0:02:42]} 10. Nxe4 {[%clk 0:02:42]}  Nxe4 {[%clk 0:02:43]} 11. Bxe4 {[%clk 0:02:42]}  Nd7 {[%clk 0:02:44]} 12. c3 {[%clk 0:02:40]}  O-O {[%clk 0:02:42]} 13. Qd2 {[%clk 0:02:38]}  Nf6 {[%clk 0:02:41]} 14. Bc2 {[%clk 0:02:35]}  Nd5 {[%clk 0:02:40]} 15. Rae1 {[%clk 0:02:26]}  Qd6 {[%clk 0:02:30]} 16. Bb3 {[%clk 0:02:19]}  a5 {[%clk 0:02:28]} 17. Bxd5 {[%clk 0:02:15]}  cxd5 {[%clk 0:02:25]} 18. Bf4 {[%clk 0:02:14]}  Qd7 {[%clk 0:02:20]} 19. Bh6 {[%clk 0:02:13]}  b5 {[%clk 0:02:18]} 20. Bxg7 {[%clk 0:02:12]}  Kxg7 {[%clk 0:02:19]} 21. h4 {[%clk 0:02:12]}  h5 {[%clk 0:02:16]} 22. Qg5 {[%clk 0:02:05]}  Qd8 {[%clk 0:02:13]} 23. Qe5+ {[%clk 0:02:00]}  Qf6 {[%clk 0:02:13]} 24. f4 {[%clk 0:01:59]}  Qxe5 {[%clk 0:02:03]} 25. fxe5 {[%clk 0:01:49]}  Ra7 {[%clk 0:02:03]} 26. Kh2 {[%clk 0:01:47]}  Rc8 {[%clk 0:02:01]} 27. Kh3 {[%clk 0:01:45]}  b4 {[%clk 0:01:59]} 28. Re3 {[%clk 0:01:44]}  bxc3 {[%clk 0:01:51]} 29. bxc3 {[%clk 0:01:41]}  Rb7 {[%clk 0:01:51]} 30. Rf2 {[%clk 0:01:31]}  a4 {[%clk 0:01:48]} 31. g4 {[%clk 0:01:28]}  hxg4+ {[%clk 0:01:47]} 32. Kxg4 {[%clk 0:01:28]}  Rb1 {[%clk 0:01:45]} 33. Ref3 {[%clk 0:01:22]}  Rc7 {[%clk 0:01:45]} 34. Rg2 {[%clk 0:01:20]}  a3 {[%clk 0:01:37]} 35. h5 {[%clk 0:01:13]}  Rb2 {[%clk 0:01:36]} 36. Rg1 {[%clk 0:00:50]}  gxh5+ {[%clk 0:01:36]} 37. Kxh5+ {[%clk 0:00:50]}  Kf8 {[%clk 0:01:37]} 38. Rfg3 {[%clk 0:00:44]}  Rxa2 {[%clk 0:01:34]} 39. Rb1 {[%clk 0:00:36]}  Rb2 {[%clk 0:01:29]} 40. Ra1 {[%clk 0:00:35]}  a2 {[%clk 0:01:28]} 41. Kg5 {[%clk 0:00:26]}  Ke7 {[%clk 0:01:28]} 42. Kf4 {[%clk 0:00:24]}  Ra7 {[%clk 0:01:12]} 43. Rgg1 {[%clk 0:00:21]}  Rc2 {[%clk 0:01:10]} 44. Rh1 {[%clk 0:00:19]}  Rxc3 {[%clk 0:01:03]} 45. Rh2 {[%clk 0:00:19]}  Rd3 {[%clk 0:01:00]} 46. Rhxa2 {[%clk 0:00:19]}  Rxa2 {[%clk 0:00:59]} 47. Rxa2 {[%clk 0:00:19]}  Rxd4+ {[%clk 0:01:00]} 48. Kf3 {[%clk 0:00:19]}  Re4 {[%clk 0:00:59]} 49. Ra7+ {[%clk 0:00:19]}  Kf8 {[%clk 0:00:59]} 50. Rb7 {[%clk 0:00:18]}  Rxe5 {[%clk 0:00:59]} 51. Kf4 {[%clk 0:00:18]}  Rf5+ {[%clk 0:00:59]} 52. Ke3 {[%clk 0:00:18]}  Kg7 {[%clk 0:01:00]} 53. Kd4 {[%clk 0:00:18]}  Kf6 {[%clk 0:01:00]} 54. Rb8 {[%clk 0:00:18]}  Rf4+ {[%clk 0:01:00]} 55. Ke3 {[%clk 0:00:18]}  Ke5 {[%clk 0:01:01]} 56. Re8 {[%clk 0:00:16]}  Ra4 {[%clk 0:00:59]} 57. Kd3 {[%clk 0:00:16]}  Ra3+ {[%clk 0:00:59]} 58. Kc2 {[%clk 0:00:15]}  f5 {[%clk 0:00:59]} 59. Rf8 {[%clk 0:00:15]}  f4 {[%clk 0:00:59]} 0-1


[Site "https://www.chess.com"]

[Event "Titled Tuesday Blitz January 10 Early 2023"]
[White "Vagman, Roy"]
[Black "Sovetbekova, Nurai"]
[WhiteFideId "2828995"]
[BlackFideId "13801910"]
[WhiteElo "2273"]
[BlackElo "1764"]
[Result "0-1"]
[Round "02"]
[TimeControl "180+2"]
[Date "2023.01.10"]
[WhiteClock "0:00:04"]
[BlackClock "0:00:10"]

1. g3 {[%clk 0:03:00]}  Nf6 {[%clk 0:02:56]} 2. Bg2 {[%clk 0:03:01]}  g6 {[%clk 0:02:56]} 3. e4 {[%clk 0:03:01]}  d6 {[%clk 0:02:48]} 4. d4 {[%clk 0:03:00]}  Bg7 {[%clk 0:02:47]} 5. Ne2 {[%clk 0:03:00]}  O-O {[%clk 0:02:46]} 6. O-O {[%clk 0:03:00]}  e5 {[%clk 0:02:45]} 7. Nbc3 {[%clk 0:02:58]}  Nc6 {[%clk 0:02:41]} 8. d5 {[%clk 0:02:57]}  Ne7 {[%clk 0:02:41]} 9. b4 {[%clk 0:02:50]}  c6 {[%clk 0:02:29]} 10. dxc6 {[%clk 0:02:48]}  Nxc6 {[%clk 0:02:28]} 11. b5 {[%clk 0:02:47]}  Ne7 {[%clk 0:02:12]} 12. Ba3 {[%clk 0:02:46]}  d5 {[%clk 0:02:09]} 13. exd5 {[%clk 0:02:42]}  Bg4 {[%clk 0:02:03]} 14. h3 {[%clk 0:02:37]}  Bxe2 {[%clk 0:02:01]} 15. Qxe2 {[%clk 0:02:38]}  Re8 {[%clk 0:01:59]} 16. d6 {[%clk 0:02:36]}  Nf5 {[%clk 0:01:56]} 17. Bxb7 {[%clk 0:02:36]}  Rb8 {[%clk 0:01:55]} 18. Bc6 {[%clk 0:02:36]}  Re6 {[%clk 0:01:51]} 19. Rad1 {[%clk 0:02:23]}  Nd4 {[%clk 0:01:45]} 20. Qd3 {[%clk 0:02:20]}  Bf8 {[%clk 0:01:31]} 21. Bc5 {[%clk 0:02:09]}  Bxd6 {[%clk 0:01:21]} 22. Bxa7 {[%clk 0:02:08]}  Nxc6 {[%clk 0:01:14]} 23. Bxb8 {[%clk 0:01:59]}  Nxb8 {[%clk 0:01:14]} 24. b6 {[%clk 0:01:58]}  Qxb6 {[%clk 0:01:11]} 25. Rb1 {[%clk 0:01:56]}  Qd8 {[%clk 0:01:08]} 26. Rfd1 {[%clk 0:01:52]}  Qf8 {[%clk 0:01:07]} 27. Nb5 {[%clk 0:01:50]}  Bc5 {[%clk 0:01:01]} 28. Nc7 {[%clk 0:01:49]}  Rd6 {[%clk 0:00:58]} 29. Qf3 {[%clk 0:01:49]}  Nbd7 {[%clk 0:00:52]} 30. Rxd6 {[%clk 0:01:46]}  Qxd6 {[%clk 0:00:51]} 31. Nb5 {[%clk 0:01:40]}  Qd2 {[%clk 0:00:48]} 32. Rd1 {[%clk 0:01:20]}  Qxc2 {[%clk 0:00:46]} 33. Rf1 {[%clk 0:01:04]}  Qxa2 {[%clk 0:00:46]} 34. Nc3 {[%clk 0:00:59]}  Qc2 {[%clk 0:00:44]} 35. g4 {[%clk 0:00:52]}  Kg7 {[%clk 0:00:40]} 36. g5 {[%clk 0:00:52]}  Nh5 {[%clk 0:00:38]} 37. Ne4 {[%clk 0:00:53]}  Bb6 {[%clk 0:00:32]} 38. Rd1 {[%clk 0:00:49]}  Qc7 {[%clk 0:00:21]} 39. Qd3 {[%clk 0:00:43]}  Nc5 {[%clk 0:00:19]} 40. Qd5 {[%clk 0:00:23]}  Nxe4 {[%clk 0:00:19]} 41. Qxe4 {[%clk 0:00:24]}  Nf4 {[%clk 0:00:18]} 42. Qf3 {[%clk 0:00:22]}  Qc2 {[%clk 0:00:17]} 43. Rd7 {[%clk 0:00:18]}  Bd4 {[%clk 0:00:15]} 44. Rxd4 {[%clk 0:00:14]}  Nxh3+ {[%clk 0:00:13]} 45. Qxh3 {[%clk 0:00:13]}  exd4 {[%clk 0:00:14]} 46. Qg3 {[%clk 0:00:10]}  Qf5 {[%clk 0:00:13]} 47. Kf1 {[%clk 0:00:09]}  d3 {[%clk 0:00:14]} 48. Ke1 {[%clk 0:00:09]}  Qe4+ {[%clk 0:00:12]} 49. Kd2 {[%clk 0:00:08]}  Qe2+ {[%clk 0:00:12]} 50. Kc3 {[%clk 0:00:09]}  d2 {[%clk 0:00:12]} 51. Qf4 {[%clk 0:00:08]}  d1=Q {[%clk 0:00:09]} 52. Qf6+ {[%clk 0:00:08]}  Kf8 {[%clk 0:00:09]} 53. Qh8+ {[%clk 0:00:07]}  Ke7 {[%clk 0:00:09]} 54. Qf6+ {[%clk 0:00:08]}  Ke8 {[%clk 0:00:09]} 55. Qc6+ {[%clk 0:00:07]}  Qd7 {[%clk 0:00:07]} 56. Qa8+ {[%clk 0:00:07]}  Ke7 {[%clk 0:00:07]} 57. Qa3+ {[%clk 0:00:08]}  Ke8 {[%clk 0:00:06]} 58. Qa8+ {[%clk 0:00:09]}  Qd8 {[%clk 0:00:06]} 59. Qa4+ {[%clk 0:00:09]}  Ke7 {[%clk 0:00:06]} 60. Qa7+ {[%clk 0:00:08]}  Ke6 {[%clk 0:00:06]} 61. Qa6+ {[%clk 0:00:07]}  Qd6 {[%clk 0:00:06]} 62. Qxe2+ {[%clk 0:00:08]}  Kd7 {[%clk 0:00:06]} 63. Qg4+ {[%clk 0:00:07]}  Qe6 {[%clk 0:00:05]} 64. Qh4 {[%clk 0:00:07]}  Qe5+ {[%clk 0:00:05]} 65. Kd3 {[%clk 0:00:07]}  Qf5+ {[%clk 0:00:05]} 66. Ke2 {[%clk 0:00:07]}  Qe5+ {[%clk 0:00:05]} 67. Kf1 {[%clk 0:00:07]}  Qb5+ {[%clk 0:00:05]} 68. Kg1 {[%clk 0:00:07]}  Ke6 {[%clk 0:00:05]} 69. Qh3+ {[%clk 0:00:05]}  Qf5 {[%clk 0:00:06]} 70. Qe3+ {[%clk 0:00:05]}  Qe5 {[%clk 0:00:06]} 71. Qb3+ {[%clk 0:00:05]}  Qd5 {[%clk 0:00:06]} 72. Qh3+ {[%clk 0:00:05]}  Qf5 {[%clk 0:00:07]} 73. Qh4 {[%clk 0:00:05]}  Qb1+ {[%clk 0:00:06]} 74. Kg2 {[%clk 0:00:05]}  Qf5 {[%clk 0:00:06]} 75. f4 {[%clk 0:00:05]}  Qe4+ {[%clk 0:00:06]} 76. Kf2 {[%clk 0:00:06]}  Kd5 {[%clk 0:00:06]} 77. Kg3 {[%clk 0:00:05]}  Qe3+ {[%clk 0:00:06]} 78. Kg2 {[%clk 0:00:05]}  Ke4 {[%clk 0:00:06]} 79. Qxh7 {[%clk 0:00:05]}  Qf3+ {[%clk 0:00:06]} 80. Kg1 {[%clk 0:00:05]}  Qg3+ {[%clk 0:00:06]} 81. Kf1 {[%clk 0:00:05]}  Qxf4+ {[%clk 0:00:06]} 82. Ke1 {[%clk 0:00:04]}  Qe3+ {[%clk 0:00:07]} 83. Kd1 {[%clk 0:00:04]}  Kd3 {[%clk 0:00:07]} 84. Qh2 {[%clk 0:00:01]}  Qf3+ {[%clk 0:00:07]} 85. Kc1 {[%clk 0:00:01]}  Qf1+ {[%clk 0:00:07]} 86. Kb2 {[%clk 0:00:02]}  Qe2+ {[%clk 0:00:07]} 87. Qxe2+ {[%clk 0:00:02]}  Kxe2 {[%clk 0:00:08]} 88. Kc3 {[%clk 0:00:03]}  Kf3 {[%clk 0:00:09]} 89. Kd4 {[%clk 0:00:04]}  Kf4 {[%clk 0:00:09]} 90. Kd5 {[%clk 0:00:04]}  Kxg5 {[%clk 0:00:10]} 0-1


[Site "https://www.chess.com"]

[Event "Titled Tuesday Blitz January 10 Early 2023"]
[White "Thiel, Thomas"]
[Black "Abdilkhair, Abilmansur"]
[WhiteFideId "4615964"]
[BlackFideId "13716417"]
[WhiteElo "2234"]
[BlackElo "2268"]
[Result "0-1"]
[Round "02"]
[TimeControl "180+2"]
[Date "2023.01.10"]
[WhiteClock "0:00:34"]
[BlackClock "0:01:16"]

1. e4 {[%clk 0:03:00]}  e6 {[%clk 0:03:00]} 2. d4 {[%clk 0:02:58]}  d5 {[%clk 0:03:01]} 3. Nc3 {[%clk 0:02:57]}  Bb4 {[%clk 0:03:00]} 4. e5 {[%clk 0:02:57]}  c5 {[%clk 0:03:01]} 5. a3 {[%clk 0:02:56]}  Ba5 {[%clk 0:03:01]} 6. b4 {[%clk 0:02:53]}  cxb4 {[%clk 0:03:00]} 7. Nb5 {[%clk 0:02:51]}  bxa3+ {[%clk 0:02:58]} 8. c3 {[%clk 0:02:47]}  Ne7 {[%clk 0:02:57]} 9. Bxa3 {[%clk 0:02:43]}  Bc7 {[%clk 0:02:49]} 10. Bd6 {[%clk 0:02:29]}  Bb6 {[%clk 0:02:45]} 11. Bb4 {[%clk 0:02:23]}  O-O {[%clk 0:02:43]} 12. Nd6 {[%clk 0:02:21]}  Nbc6 {[%clk 0:02:42]} 13. Ba3 {[%clk 0:02:14]}  f6 {[%clk 0:02:29]} 14. f4 {[%clk 0:02:13]}  fxe5 {[%clk 0:02:25]} 15. fxe5 {[%clk 0:02:14]}  Nf5 {[%clk 0:02:19]} 16. Nf3 {[%clk 0:02:11]}  Nxd6 {[%clk 0:02:13]} 17. Bxd6 {[%clk 0:02:12]}  Rf7 {[%clk 0:02:06]} 18. Qd2 {[%clk 0:02:02]}  g6 {[%clk 0:02:04]} 19. Bd3 {[%clk 0:02:00]}  Bd7 {[%clk 0:02:04]} 20. Ng5 {[%clk 0:01:53]}  Rg7 {[%clk 0:02:04]} 21. O-O {[%clk 0:01:49]}  Qe8 {[%clk 0:02:00]} 22. Rf8+ {[%clk 0:01:46]}  Qxf8 {[%clk 0:01:59]} 23. Bxf8 {[%clk 0:01:46]}  Rxf8 {[%clk 0:02:00]} 24. Nf3 {[%clk 0:01:40]}  Rgf7 {[%clk 0:01:57]} 25. h3 {[%clk 0:01:37]}  Ne7 {[%clk 0:01:53]} 26. Kh2 {[%clk 0:01:34]}  Kg7 {[%clk 0:01:49]} 27. Rb1 {[%clk 0:01:30]}  h6 {[%clk 0:01:48]} 28. Bb5 {[%clk 0:01:29]}  Bxb5 {[%clk 0:01:46]} 29. Rxb5 {[%clk 0:01:30]}  g5 {[%clk 0:01:39]} 30. Qb2 {[%clk 0:01:15]}  Ng6 {[%clk 0:01:39]} 31. Rxb6 {[%clk 0:01:14]}  axb6 {[%clk 0:01:40]} 32. Qxb6 {[%clk 0:01:14]}  Nf4 {[%clk 0:01:40]} 33. Kg3 {[%clk 0:00:52]}  Nxg2 {[%clk 0:01:28]} 34. Kxg2 {[%clk 0:00:50]}  Rxf3 {[%clk 0:01:28]} 35. Qxe6 {[%clk 0:00:48]}  Rf2+ {[%clk 0:01:21]} 36. Kg1 {[%clk 0:00:45]}  Rb2 {[%clk 0:01:18]} 37. Qxd5 {[%clk 0:00:41]}  Ra8 {[%clk 0:01:16]} 38. Qd7+ {[%clk 0:00:34]}  Kh8 {[%clk 0:01:16]} 0-1


[Site "https://www.chess.com"]

[Event "Titled Tuesday Blitz January 10 Early 2023"]
[White "Ladan, Nicholas"]
[Black "Avalos Parra, Joao"]
[WhiteFideId "30918855"]
[BlackFideId "3402541"]
[WhiteElo "2228"]
[BlackElo "2185"]
[Result "0-1"]
[Round "02"]
[TimeControl "180+2"]
[Date "2023.01.10"]
[WhiteClock "0:01:01"]
[BlackClock "0:00:16"]

1. b4 {[%clk 0:03:00]}  Nf6 {[%clk 0:02:54]} 2. Bb2 {[%clk 0:03:01]}  g6 {[%clk 0:02:54]} 3. e3 {[%clk 0:03:01]}  Bg7 {[%clk 0:02:55]} 4. d3 {[%clk 0:03:00]}  O-O {[%clk 0:02:55]} 5. Nf3 {[%clk 0:02:59]}  a5 {[%clk 0:02:55]} 6. a3 {[%clk 0:02:59]}  d6 {[%clk 0:02:56]} 7. Nbd2 {[%clk 0:02:59]}  e5 {[%clk 0:02:52]} 8. Be2 {[%clk 0:02:59]}  c6 {[%clk 0:02:50]} 9. O-O {[%clk 0:03:00]}  Be6 {[%clk 0:02:50]} 10. c4 {[%clk 0:03:00]}  h6 {[%clk 0:02:50]} 11. h3 {[%clk 0:03:00]}  Nbd7 {[%clk 0:02:50]} 12. Qc2 {[%clk 0:03:00]}  Qc7 {[%clk 0:02:49]} 13. Rfc1 {[%clk 0:02:59]}  Rfe8 {[%clk 0:02:49]} 14. d4 {[%clk 0:02:55]}  e4 {[%clk 0:02:38]} 15. Nh2 {[%clk 0:02:47]}  Nf8 {[%clk 0:02:23]} 16. Nhf1 {[%clk 0:02:43]}  N8h7 {[%clk 0:02:21]} 17. Ng3 {[%clk 0:02:43]}  d5 {[%clk 0:02:13]} 18. cxd5 {[%clk 0:02:42]}  Bxd5 {[%clk 0:02:14]} 19. b5 {[%clk 0:02:36]}  h5 {[%clk 0:02:13]} 20. Bc4 {[%clk 0:02:29]}  h4 {[%clk 0:02:07]} 21. Bxd5 {[%clk 0:02:24]}  hxg3 {[%clk 0:02:06]} 22. Bxe4 {[%clk 0:02:23]}  gxf2+ {[%clk 0:02:05]} 23. Kxf2 {[%clk 0:02:23]}  Ng5 {[%clk 0:01:29]} 24. Bf3 {[%clk 0:02:08]}  Qh2 {[%clk 0:01:08]} 25. Rh1 {[%clk 0:01:54]}  Nxh3+ {[%clk 0:00:54]} 26. Ke2 {[%clk 0:01:54]}  Nf4+ {[%clk 0:00:37]} 27. Kf2 {[%clk 0:01:43]}  Ng4+ {[%clk 0:00:36]} 28. Bxg4 {[%clk 0:01:35]}  Qxg2+ {[%clk 0:00:36]} 29. Ke1 {[%clk 0:01:35]}  Rxe3+ {[%clk 0:00:34]} 30. Kd1 {[%clk 0:01:30]}  Qxh1+ {[%clk 0:00:20]} 31. Nf1 {[%clk 0:01:30]}  Qxf1+ {[%clk 0:00:20]} 32. Kd2 {[%clk 0:01:31]}  Qf2+ {[%clk 0:00:21]} 33. Kc1 {[%clk 0:01:31]}  Re1+ {[%clk 0:00:19]} 34. Bd1 {[%clk 0:01:32]}  Qxc2+ {[%clk 0:00:15]} 35. Kxc2 {[%clk 0:01:33]}  Rae8 {[%clk 0:00:15]} 36. Ra2 {[%clk 0:01:33]}  Nd5 {[%clk 0:00:15]} 37. Bc1 {[%clk 0:01:29]}  Ne3+ {[%clk 0:00:14]} 38. Bxe3 {[%clk 0:01:30]}  R8xe3 {[%clk 0:00:15]} 39. b6 {[%clk 0:01:25]}  Bxd4 {[%clk 0:00:14]} 40. a4 {[%clk 0:01:14]}  Bxb6 {[%clk 0:00:14]} 41. Rb2 {[%clk 0:01:14]}  Bd4 {[%clk 0:00:14]} 42. Rxb7 {[%clk 0:01:14]}  c5 {[%clk 0:00:15]} 43. Bg4 {[%clk 0:01:12]}  Kg7 {[%clk 0:00:15]} 44. Bd7 {[%clk 0:01:10]}  Rg1 {[%clk 0:00:14]} 45. Bb5 {[%clk 0:01:09]}  Rg2+ {[%clk 0:00:14]} 46. Kd1 {[%clk 0:01:09]}  Ra3 {[%clk 0:00:14]} 47. Bd3 {[%clk 0:01:04]}  Rxd3+ {[%clk 0:00:14]} 48. Ke1 {[%clk 0:01:01]}  Ra3 {[%clk 0:00:14]} 49. Kf1 {[%clk 0:01:02]}  Rf2+ {[%clk 0:00:14]} 50. Kg1 {[%clk 0:01:01]}  Ra1+ {[%clk 0:00:15]} 51. Rb1 {[%clk 0:01:01]}  Rxb1# {[%clk 0:00:16]} 0-1


[Site "https://www.chess.com"]

[Event "Titled Tuesday Blitz January 10 Early 2023"]
[White "Valle Maytin, Luis Enrique"]
[Black "Kuchava, Ana"]
[WhiteFideId "3503666"]
[BlackFideId "13605348"]
[WhiteElo "2241"]
[BlackElo "2101"]
[Result "1-0"]
[Round "02"]
[TimeControl "180+2"]
[Date "2023.01.10"]
[WhiteClock "0:00:06"]
[BlackClock "0:00:02"]

1. e4 {[%clk 0:03:00]}  c5 {[%clk 0:02:58]} 2. Nf3 {[%clk 0:03:00]}  d6 {[%clk 0:02:58]} 3. d4 {[%clk 0:02:59]}  cxd4 {[%clk 0:02:59]} 4. Nxd4 {[%clk 0:03:00]}  Nf6 {[%clk 0:02:59]} 5. Nc3 {[%clk 0:03:00]}  Nc6 {[%clk 0:03:00]} 6. Be2 {[%clk 0:02:56]}  e5 {[%clk 0:02:57]} 7. Nb3 {[%clk 0:02:49]}  Be7 {[%clk 0:02:48]} 8. Be3 {[%clk 0:02:44]}  Be6 {[%clk 0:02:47]} 9. g4 {[%clk 0:02:30]}  a5 {[%clk 0:02:40]} 10. g5 {[%clk 0:02:22]}  Nd7 {[%clk 0:02:39]} 11. h4 {[%clk 0:02:21]}  a4 {[%clk 0:02:22]} 12. Nd2 {[%clk 0:02:17]}  Nc5 {[%clk 0:02:16]} 13. Nc4 {[%clk 0:02:05]}  Rb8 {[%clk 0:01:39]} 14. Bxc5 {[%clk 0:01:57]}  dxc5 {[%clk 0:01:40]} 15. Qxd8+ {[%clk 0:01:13]}  Bxd8 {[%clk 0:01:31]} 16. Nxa4 {[%clk 0:01:01]}  b5 {[%clk 0:01:25]} 17. Nd6+ {[%clk 0:01:00]}  Ke7 {[%clk 0:01:04]} 18. Nxb5 {[%clk 0:00:59]}  Nd4 {[%clk 0:01:02]} 19. Nxd4 {[%clk 0:00:55]}  cxd4 {[%clk 0:01:03]} 20. b3 {[%clk 0:00:37]}  Ba5+ {[%clk 0:01:01]} 21. Kf1 {[%clk 0:00:35]}  Rhc8 {[%clk 0:01:00]} 22. Bd3 {[%clk 0:00:34]}  Bd7 {[%clk 0:00:56]} 23. Nb2 {[%clk 0:00:26]}  Bc3 {[%clk 0:00:53]} 24. Rb1 {[%clk 0:00:26]}  Ra8 {[%clk 0:00:50]} 25. a4 {[%clk 0:00:23]}  Be6 {[%clk 0:00:48]} 26. Ke2 {[%clk 0:00:20]}  Rf8 {[%clk 0:00:40]} 27. f3 {[%clk 0:00:19]}  f6 {[%clk 0:00:38]} 28. Nd1 {[%clk 0:00:16]}  Bb4 {[%clk 0:00:34]} 29. Nf2 {[%clk 0:00:16]}  h6 {[%clk 0:00:20]} 30. gxh6 {[%clk 0:00:15]}  gxh6 {[%clk 0:00:21]} 31. Rhg1 {[%clk 0:00:16]}  Rg8 {[%clk 0:00:21]} 32. Ra1 {[%clk 0:00:11]}  h5 {[%clk 0:00:20]} 33. Rab1 {[%clk 0:00:09]}  Kf7 {[%clk 0:00:18]} 34. Bb5 {[%clk 0:00:08]}  Rxg1 {[%clk 0:00:14]} 35. Rxg1 {[%clk 0:00:09]}  Rg8 {[%clk 0:00:14]} 36. Rxg8 {[%clk 0:00:09]}  Kxg8 {[%clk 0:00:15]} 37. Nd3 {[%clk 0:00:09]}  Bd6 {[%clk 0:00:14]} 38. a5 {[%clk 0:00:09]}  Bb8 {[%clk 0:00:12]} 39. Nc5 {[%clk 0:00:07]}  Bc8 {[%clk 0:00:12]} 40. a6 {[%clk 0:00:05]}  Kf7 {[%clk 0:00:12]} 41. Bc4+ {[%clk 0:00:05]}  Ke7 {[%clk 0:00:12]} 42. Bd5 {[%clk 0:00:04]}  Ba7 {[%clk 0:00:12]} 43. Bb7 {[%clk 0:00:04]}  Bh3 {[%clk 0:00:10]} 44. Na4 {[%clk 0:00:03]}  Bd7 {[%clk 0:00:10]} 45. Nb2 {[%clk 0:00:02]}  Bb5+ {[%clk 0:00:10]} 46. Kd2 {[%clk 0:00:02]}  Kd6 {[%clk 0:00:08]} 47. c4 {[%clk 0:00:03]}  dxc3+ {[%clk 0:00:08]} 48. Kxc3 {[%clk 0:00:04]}  Be2 {[%clk 0:00:08]} 49. b4 {[%clk 0:00:02]}  Bxf3 {[%clk 0:00:08]} 50. Nc4+ {[%clk 0:00:03]}  Kc7 {[%clk 0:00:08]} 51. Nd2 {[%clk 0:00:04]}  Bd4+ {[%clk 0:00:06]} 52. Kd3 {[%clk 0:00:04]}  Kb6 {[%clk 0:00:06]} 53. Nxf3 {[%clk 0:00:05]}  Bf2 {[%clk 0:00:05]} 54. Nd2 {[%clk 0:00:05]}  Ka7 {[%clk 0:00:05]} 55. Nc4 {[%clk 0:00:05]}  Bxh4 {[%clk 0:00:03]} 56. Ke2 {[%clk 0:00:05]}  Bg3 {[%clk 0:00:03]} 57. b5 {[%clk 0:00:05]}  h4 {[%clk 0:00:03]} 58. b6+ {[%clk 0:00:06]}  Kb8 {[%clk 0:00:03]} 59. Nd6 {[%clk 0:00:06]}  h3 {[%clk 0:00:02]} 60. a7# {[%clk 0:00:06]} 1-0


[Site "https://www.chess.com"]